Cogmind - Beta 16.1 @@@ ROGUE MODE // 2026.02.17 @ 17:05:30 Player: Artackni Result: Destroyed by H8-E20(R) with Subdweller Beam Cannon Performance ------------- Evolutions (0) 0 Regions Visited (2) 400 Robots Destroyed (33) 165 Value Destroyed (584) 584 Prototype IDs (0) 0 Alien Tech Used (0) 0 Bonus (0) 0 TOTAL SCORE: 1149 Bonus ------- None Cogmind --------- Core Integrity 0/250 Matter 282/300 Energy 48/100 System Corruption 2% Temperature Cool (9) Movement Rolling (115) Ox1 Location -10/Subcaves Parts ------- > --- POWER (1) -------- (None) > --- PROPULSION (2) --- Compact Wheel > --- UTILITY (2) ------ Large Storage Unit Seismic Detector > --- WEAPON (2) ------- Subdweller Beam Cannon Barrage Gun (fused) > --- INVENTORY (15) --- Light Nuclear Core Light Treads Light Treads Aluminum Leg Aluminum Leg High-capacity Battery (250) High-capacity Matter Pod (200) Seismic Detector Makeshift Light Armor Plating Particle Gun Barrage Gun Grenade Launcher Grenade Launcher Peak State ------------ > --- POWER ------------ Ion Engine > --- PROPULSION ------- Wheel Wheel > --- UTILITY ---------- Large Storage Unit Makeshift Light Armor Plating > --- WEAPON ----------- Barrage Gun Barrage Gun > --- INVENTORY -------- Light Nuclear Core Light Treads Light Treads Aluminum Leg Aluminum Leg Compact Wheel High-capacity Battery High-capacity Matter Pod Seismic Detector Seismic Detector Particle Gun Grenade Launcher Grenade Launcher [Rating: 15] Favorites ----------- Power Light Ion Engine Engine Light Ion Engine Propulsion Compact Wheel Wheel Compact Wheel Utility Large Storage Unit Device Seismic Detector Storage Large Storage Unit Protection Makeshift Light Armor Plating Weapon Small Laser Energy Gun Small Laser Energy Cannon Beam Cannon Ballistic Gun Barrage Gun Launcher Grenade Launcher Build | -11 -10 -10 ------- Run | Yrd Mat Sub Slots Evolved . | . . . Power . | . . . Propulsion . | . . . Utility . | . . . Weapon . | . . . Parts Attached 27 | 7 13 7 Power 3 | 1 1 1 Engine 3 | 1 1 1 Core . | . . . Reactor . | . . . Propulsion 9 | 2 5 2 Treads . | . . . Leg . | . . . Wheel 9 | 2 5 2 Hover . | . . . Flight . | . . . Utility 5 | 2 2 1 Device 2 | 1 1 . Storage 2 | 1 1 . Processor . | . . . Hackware . | . . . Protection 1 | . . 1 Artifact . | . . . Weapon 10 | 2 5 3 Energy Gun 5 | 2 3 . Energy Cannon 2 | . 1 1 Ballistic Gun 2 | . . 2 Ballistic Cannon . | . . . Launcher 1 | . 1 . Special Weapon . | . . . Impact Weapon . | . . . Slashing Weapon . | . . . Piercing Weapon . | . . . Special Melee Weapon . | . . . Unidentified Prototypes . | . . . Parts Lost 12 | . 4 8 Power 2 | . . 2 Propulsion 6 | . 2 4 Utility . | . . . Weapon 4 | . 2 2 Highest Loss Streak 3 | . 2 3 To Critical Strikes . | . . . Average Backups 11 | 4 12 13 Power 1 | . 2 1 Propulsion 5 | 3 5 4 Utility 2 | . 2 3 Weapon 2 | . 2 3 Tool/Special . | . . . Unused Backups 8 | . . 8 Power 1 | . . 1 Propulsion 4 | . . 4 Utility 2 | . . 2 Weapon 1 | . . 1 Tool/Special . | . . . Average Slot Usage (%) 99 | . 99 98 Engine 13 | . 14 13 Wheel 27 | . 27 27 Device 12 | . 14 9 Storage 14 | . 14 14 Protection 1 | . . 4 Energy Gun 17 | . 24 4 Energy Cannon 3 | . 3 4 Ballistic Gun 6 | . . 18 Peak Build Rating 15 | 7 9 15 Average Rating 9 | 6 8 12 On Entrance 5 | . 7 8 Avg Prop Armor Cover (%) . | . . . Naked Turns . | . . . Heaviest Build 37 | 11 28 37 Greatest Support 32 | 32 32 26 Greatest Overweight (x) 3 | . 1 3 Average Overweight (x) . | . . 1 Largest Inventory Capacity 15 | 8 15 15 Average Capacity 14 | 7 14 15 Most Carried 15 | 8 15 15 Average Carried 11 | 5 12 13 Final Capacity 15 | 8 15 15 Final Carried 15 | 8 15 13 Class Distribution -------------------- 60% | Mutant 39% | Scavenger-Mutant Dominant Class ---------------- Scavenger-Mutant | -10/Materials Mutant | -10/Subcaves Resources | -11 -10 -10 ----------- Run | Yrd Mat Sub Matter Collected 678 | 235 360 83 Remotely . | . . . Salvage Created 1041 | 147 757 137 Parts 64 | 15 42 7 Haulers Intercepted 1 | . 1 . Recyclers Shooed 5 | . 5 . Parts Field Recycled . | . . . Retrieved Matter . | . . . Parts Self-Destructed 18 | . . 18 Prevented . | . . . Parts Restored . | . . . Kills | -11 -10 -10 ------- Run | Yrd Mat Sub Combat Hostiles Destroyed 20 | . 15 5 Guns 15 | . 12 3 Cannons 5 | . 3 2 Classes Destroyed 9 | 2 6 1 Worker 1 | . 1 . Builder 2 | . 2 . Tunneler 5 | 5 . . Hauler 1 | . 1 . Recycler 3 | 1 2 . Watcher 1 | . 1 . Swarmer 9 | . 6 3 Grunt 9 | . 9 . Subdweller 2 | . . 2 Best Kill Streak 3 | 3 3 3 Combat Bots Only 3 | . 3 3 Max Kills in Single Turn 1 | 1 1 1 Gunslinging . | . . . Exploded . | . . . Melee . | . . . Uniques/NPCs Destroyed . | . . . Combat | -11 -10 -10 -------- Run | Yrd Mat Sub Hostile Shots Fired 161 | . 69 92 Missed 46 | . 16 30 Hits 115 | . 53 62 Projectile 115 | . 53 62 Critical Strikes 2 | . 2 . Damage Taken 1261 | . 545 716 Core 268 | . 121 147 Absorbed by Shields . | . . . Core Remaining (%) 100 | 100 . . Volleys Fired 113 | 14 79 20 Largest 2 | 2 2 2 Hottest 105 | 80 105 100 Shots Fired 208 | 28 147 33 Gun 170 | 28 126 16 Cannon 38 | . 21 17 Launcher . | . . . Special . | . . . Kinetic 6 | . . 6 Thermal 202 | 28 147 27 Explosive . | . . . Electromagnetic . | . . . Robot Hit Streak 15 | 4 15 14 Robot Miss Streak 4 | 3 4 3 Penetration Max . | . . . Secondary Targets . | . . . Shots Hit Robots 125 | 16 89 20 Core Hits 48 | 7 35 6 Critical Kills . | . . . Critical Parts Destroyed . | . . . Critical Strikes . | . . . Melee Attacks . | . . . Impact . | . . . Slashing . | . . . Piercing . | . . . Sneak Attacks . | . . . Combat Hostiles . | . . . Follow-up Attacks . | . . . Damage Inflicted 1727 | 195 1131 401 Guns 1252 | 195 940 117 Cannons 475 | . 191 284 Explosions . | . . . Melee . | . . . Ramming . | . . . Kinetic 43 | . . 43 Thermal 1684 | 195 1131 358 Explosive . | . . . Electromagnetic . | . . . Impact . | . . . Slashing . | . . . Piercing . | . . . Highest Corruption 2 | . 2 2 Average Corruption 2 | . 2 2 Corruption Purged . | . . . Corruption Blocked . | . . . Effects 13 | . 2 11 Message Errors 5 | . . 5 Matter Fused 1 | . . 1 Energy Discharges 2 | . . 2 Parts Rejected 1 | . 1 . Parts Fused 1 | . . 1 Data Loss (minor) 2 | . 1 1 Misfires 1 | . . 1 Overload Shots . | . . . Overflow Damage . | . . . Projectiles . | . . . Explosions . | . . . Melee . | . . . Knockbacks . | . . . Impact . | . . . Kinetic . | . . . Secondary . | . . . Self-Inflicted Damage . | . . . Shots . | . . . Rammed . | . . . Targets Rammed . | . . . Kicked . | . . . Crushed . | . . . Highest Temperature 280 | 72 280 4 Average Temperature 74 | 26 82 2 Received Heat Transfer 465 | . 198 267 Effects 2 | . 2 . Interference 2 | . 2 . Siege Activations . | . . . Martial Activations . | . . . Shielding Activations . | . . . Robots Disrupted . | . . . Combat Hostiles . | . . . Robots Corrupted . | . . . Combat Hostiles . | . . . Parts Fried . | . . . Impact Corruptions . | . . . Robots Melted . | . . . Combat Hostiles . | . . . Parts Melted 1 | . 1 . Heat Transferred 3668 | 450 2599 619 Parts Sabotaged . | . . . Parts Stolen . | . . . Parts Stripped . | . . . Power Chain Reactions . | . . . Alert | -11 -10 -10 ------- Run | Yrd Mat Sub Maximum Alert Level . | . . . Low Security (%) 100 | 100 100 . Level 1 . | . . . Level 2 . | . . . Level 3 . | . . . Level 4 . | . . . Level 5 . | . . . High Security . | . . . Max Security . | . . . Peak Influence 100 | 10 100 . Initial . | . . . Average 39 | 1 45 . Influence Increases 725 | 30 485 210 Destroy 0b10 Robot/C 360 | . 300 60 Destroy 0b10 Robot/NC 65 | 30 35 . Destroy Leader 64 | . 64 . Successful Hack 8 | . 8 . Destroy Structure 3 | . 3 . Lose Combat Pursuer 225 | . 75 150 Influence Decreases 725 | 30 429 266 Entered New Map 28 | . . 28 Time Decay 604 | 30 389 185 Lost Part 93 | . 40 53 Squads Dispatched 2 | . 2 . Investigation 1 | . 1 . Extermination . | . . . Reinforcement 1 | . 1 . Assault . | . . . Garrison . | . . . Intercept . | . . . Searches Triggered . | . . . Construction Impeded . | . . . Haulers Reinforced . | . . . Active Scanning Responses . | . . . Cargo Convoy Interrupts . | . . . Stealth | -11 -10 -10 --------- Run | Yrd Mat Sub Distress Signals 6 | . 6 . Communications Jammed . | . . . Distress Signals . | . . . Times Spotted 46 | . 31 15 Peak Tracking Total 6 | . 5 6 Tactical Retreats 8 | . 3 5 Traps | -11 -10 -10 ------- Run | Yrd Mat Sub Traps Triggered 1 | . 1 . Indirectly . | . . . Trap Hack Attempts . | . . . Triggered . | . . . Disarmed . | . . . Reprogrammed . | . . . Reused . | . . . Traps Extracted . | . . . Installed . | . . . Triggered . | . . . Machines | -11 -10 -10 ---------- Run | Yrd Mat Sub Machines Disabled 1 | . . 1 Max in Single Turn 1 | . . 1 Machines Repaired . | . . . Machines Dismantled . | . . . Machines Sabotaged . | . . . Overloaded Fab Kills . | . . . Hacking | -11 -10 -10 --------- Run | Yrd Mat Sub Machines Accessed 6 | . 6 . Terminals 6 | . 6 . Fabricators . | . . . Repair Stations . | . . . Recycling Units . | . . . Scanalyzers . | . . . Garrison Access . | . . . Total Hacks 10 | . 10 . Successful 6 | . 6 . Failed 4 | . 4 . Catastrophic 1 | . 1 . Database Lockouts . | . . . Manual 10 | . 10 . Terminals 10 | . 10 . Fabricators . | . . . Repair Stations . | . . . Recycling Units . | . . . Scanalyzers . | . . . Garrison Access . | . . . Terminal Hacks . | . . . Fabricator Hacks . | . . . Repair Station Hacks . | . . . Recycling Unit Hacks . | . . . Scanalyzer . | . . . Garrison Access Hacks . | . . . Unauthorized Hacks 6 | . 6 . Terminals 6 | . 6 . Skim 6 | . 6 . Fabricators . | . . . Repair Stations . | . . . Recycling Units . | . . . Scanalyzers . | . . . Garrison Access . | . . . Data Cores Recovered . | . . . Used . | . . . Hacking Detections 3 | . 3 . Full Trace Events 1 | . 1 . Feedback Events . | . . . Feedback Blocked . | . . . Robot Schematics Acquired . | . . . Robots Built . | . . . Authchips . | . . . Time . | . . . Total Robot Build Rating . | . . . Part Schematics Acquired . | . . . Parts Built . | . . . Authchips . | . . . Time . | . . . Total Part Build Rating . | . . . Part Studies Acquired . | . . . Parts Repaired . | . . . Time . | . . . Parts Recycled . | . . . Recycled Matter . | . . . Retrieved Matter . | . . . Retrieved Components . | . . . Parts Scanalyzed . | . . . Part Schematics Acquired . | . . . Parts Damaged . | . . . Bothacking | -11 -10 -10 ------------ Run | Yrd Mat Sub Used RIF Installer . | . . . Robots Hacked . | . . . Non-combat . | . . . Combat . | . . . Robot Hacks Applied . | . . . Relay Couplers Released . | . . . Fabnet Peak Effective % . | . . . Robots Rewired . | . . . Allies Hacked . | . . . Hacks Repelled . | . . . Allies | -11 -10 -10 -------- Run | Yrd Mat Sub Total Allies . | . . . Largest Group . | . . . Highest-Rated Group . | . . . Highest-Rated Ally . | . . . Total Orders . | . . . Ally Attacks . | . . . Total Damage . | . . . Kills . | . . . Allies Corrupted . | . . . Allies Melted . | . . . Intel | -11 -10 -10 ------- Run | Yrd Mat Sub Active Infowar (turns) 1551 | 91 1062 398 Seismic 1551 | 91 1062 398 Robot Analysis Total . | . . . Derelict Logs Recovered 1 | . . 1 Drone Launches . | . . . Drone Recoveries . | . . . Exploration | -11 -10 -10 ------------- Run | Yrd Mat Sub Turns Passed 1833 | 180 1075 578 Spaces Moved 1289 | 120 675 494 Core 1 | 1 . . Treads . | . . . Legs . | . . . Wheels 1288 | 119 675 494 Hover . | . . . Flight . | . . . Fastest Speed 50 | 50 90 95 Average Speed 102 | 99 102 101 Slowest Speed 125 | 100 105 125 Overloaded Moves . | . . . Propulsion Burnouts . | . . . Robots Hopped . | . . . Potential Cave-ins . | . . . Cave-ins Triggered . | . . . Exploration Rate (%) 36 | 3 87 19 Regions Visited 2 Branch Regions 1 Pre-discovered Areas . | . . . Known Exits Taken . | . . . Unknown Exits Taken 2 | 1 1 . Scrap Searched 4 | . . 4 Spaces Dug . | . . . Terrain Destroyed . | . . . Melee . | . . . Projectile . | . . . AOE . | . . . Terrain Rammed . | . . . Walls Destroyed . | . . . Machines Disabled . | . . . Actions | -11 -10 -10 --------- Run | Yrd Mat Sub Total 1596 | 148 909 539 Wait 138 | . 126 12 Move 1287 | 119 674 494 Hop . | . . . Pick Up 22 | 8 10 4 Fast Attach 9 | 7 2 . Attach 10 | . 4 6 Detach . | . . . Swap 11 | . 8 3 Drop 6 | . 6 . Fire 113 | 14 79 20 Melee . | . . . Ram . | . . . Kick . | . . . Crush . | . . . Escape Stasis . | . . . Rewire . | . . . Trap . | . . . Miscellaneous . | . . . Route ------- -11/Scrapyard -10/Materials (discovered 4 exits: [*Mat x2] / [*Min] / [*Sub]) -10/Subcaves (discovered 1 exit: [*Rec]) History --------- Turn | Location | Event 14 | -11/Scrapyard | Discovered new exit (range 15) 181 | -11/Scrapyard | Entered Materials 302 | -10/Materials | Build established: Mutant 423 | -10/Materials | Discovered new exit (range 9) 864 | -10/Materials | Build established: Scavenger-Mutant 916 | -10/Materials | Discovered new exit (range 5) 1057 | -10/Materials | Loaded intel: 1 repair station location 1130 | -10/Materials | Learned 4 Subcaves zone layouts 1137 | -10/Materials | Discovered new exit (range 15) 1191 | -10/Materials | Learned Storage emergency access door positions 1243 | -10/Materials | Learned 4 Recycling zone layouts 1250 | -10/Materials | Discovered new exit (range 7) 1256 | -10/Materials | Entered Subcaves 1256 | -10/Subcaves | Discovered new exit (range 9) 1257 | -10/Subcaves | Approached by a straggling Scientist 1258 | -10/Subcaves | Core integrity fell below 50% 1297 | -10/Subcaves | A swath of the cavern ceiling suddenly collapsed 1305 | -10/Subcaves | Lost 3 parts (1p2n) 1346 | -10/Subcaves | Disturbed a concealed Subdweller 1434 | -10/Subcaves | Core integrity fell below 20% 1561 | -10/Subcaves | Build established: Mutant 1654 | -10/Subcaves | Learned Materials stockpile data 1834 | -10/Subcaves | Destroyed by H8-E20(R) with Subdweller Beam Cannon Last Messages --------------- 01478_ System corrupted: FCS attempts to trigger Barrage Gun. 01478_ System corrupted: Barrage Gun misfires. 01491_ Wheel destroyed. 01506_ Acquired 19 matter. 01511_ System corrupted: Barrage Gun fused. 01532_ J|AF>AX>|GVQ K|:VDIJ :IJ3QLPBXK98 01556_ Acquired Sub. Beam Cannon. 01560_ WF<#U04WH,DM F|Z&QR7NB J2K1H